{"text_format":"3","workbook":"xlsx","n_sheets":2,"sheets":["بدء استخدام","مخطط موازنة الإجازات"],"not_rendered":{"defined_names":1},"read":"whole","date_system":"1900"}

{"sheet":"بدء استخدام","index":0,"n_rows":7,"n_cols":2,"rows_kept":7}
[null,"حول هذا القالب"]
[null,"تتبع المصروفات الخاصة بك مع مخطط موازنة الإجازات."]
[null,"أدخل الميزانية والمصروفات الفعلية المتكبدة على مختلف البنود في الجداول."]
[null,"يتم حساب ميزانية العطلة وإجمالي المبلغ الفعلي الذي تم إنفاقه والفرق في حسابك تلقائياً."]
[null,"ملاحظة: "]
[null,"تم توفير إرشادات إضافية في العمود A في ورقة عمل \"مخطط موازنة الإجازات\". تم إخفاء هذا النص عن قصد. لإزالة النص، حدد العمود A، ثم حدد \"حذف\". لإظهار النص، حدد العمود A، ثم قم بتغيير لون الخط."]
[null,"للتعرف على المزيد حول الجداول، اضغط على SHIFT ثم F10 داخل جدول، وحدد خيار \"جدول\"، ثم حدد \"النص البديل\"."]

{"sheet":"مخطط موازنة الإجازات","index":1,"n_rows":32,"n_cols":12,"rows_kept":32,"merged":[[1,1,5,4],[2,8,2,9],[3,8,3,9],[4,8,4,9],[6,1,6,4],[6,8,6,11],[15,1,15,4],[15,8,15,11],[25,1,25,4],[25,8,25,11]]}
["أدخل الميزانية والنفقات الفعلية المتكبدة في كل فئة في الجداول ذات الصلة في ورقة العمل هذه. توجد تعليمات مفيدة حول كيفية استخدام ورقة العمل هذه في الخلايا الموجودة في هذا العمود. السهم لأسفل لبدء الاستخدام. "]
["يوجد عنوان ورقة العمل هذه في الخلية الموجودة على اليسار.","مخطط موازنة الإجازات"]
["يتم حساب ميزانية العطلة تلقائياً في الخلية K3.",{"$nulls":7},"موازنة الإجازات",null,{"$f":"SUM(الهدايا[الميزانية],التعبئة[الميزانية],(السفر[الميزانية],(الوجبات[الميزانية],(الترفيه[الميزانية],المصروفات_المتنوعة[الميزانية]))))","v":{"v":750,"d":"ر.س.‏ 750.00"}}]
["يتم حساب الإنفاق الفعلي المستحق في الخلية K4.",{"$nulls":7},"الإنفاق الفعلي",null,{"$f":"SUM((الهدايا[الفعلية],(التعبئة[الفعلية],(السفر[الفعلية],(الوجبات[الفعلية],(الترفيه[الفعلية],(المصروفات_المتنوعة[الفعلية])))))))","v":{"v":820,"d":"ر.س.‏ 820.00"}}]
["يتم حساب الفرق تلقائياً في الخلية K5. الإرشادات التالية في الخلية A7.",{"$nulls":7},"الفرق (فوق/تحت الميزانية)",null,{"$f":"SUM(K3-K4)","v":{"v":-70,"d":"ر.س.‏ 70.00-"}}]
[]
["توجد تسمية الهدايا في الخلية على اليسار وتسمية الوجبات في الخلية I7.","الهدايا",{"$nulls":6},"وجبات العطلة"]
["أدخل مصروفات الهدايا في الجدول بدءاً من الخلية على اليسار ومصروفات وجبات الطعام في الجدول بدءًا من الخلية I8. توجد الإرشادات التالية في الخلية A16.","العنصر","الميزانية","الفعلية","الفرق",{"$nulls":3},"العنصر","الميزانية","الفعلية","الفرق"]
[null,"العائلة",{"v":500,"d":"ر.س.‏ 500.00"},{"v":495,"d":"ر.س.‏ 495.00"},{"$f":"الهدايا[[#This Row],[الميزانية]]-الهدايا[[#This Row],[الفعلية]]","v":{"v":5,"d":"ر.س.‏ 5.00"}},{"$nulls":3},"البقالة",null,null,{"$f":"الوجبات[[#This Row],[الميزانية]]-الوجبات[[#This Row],[الفعلية]]","v":{"v":0,"d":"ر.س.‏ 0.00"}}]
[null,"الأصدقاء",{"v":250,"d":"ر.س.‏ 250.00"},{"v":325,"d":"ر.س.‏ 325.00"},{"$f":"الهدايا[[#This Row],[الميزانية]]-الهدايا[[#This Row],[الفعلية]]","v":{"v":-75,"d":"-ر.س.‏ 75.00"}},{"$nulls":3},"المشروبات",null,null,{"$f":"الوجبات[[#This Row],[الميزانية]]-الوجبات[[#This Row],[الفعلية]]","v":{"v":0,"d":"ر.س.‏ 0.00"}}]
[null,"زملاء_العمل",null,null,{"$f":"الهدايا[[#This Row],[الميزانية]]-الهدايا[[#This Row],[الفعلية]]","v":{"v":0,"d":"ر.س.‏ 0.00"}},{"$nulls":3},"الديكورات",null,null,{"$f":"الوجبات[[#This Row],[الميزانية]]-الوجبات[[#This Row],[الفعلية]]","v":{"v":0,"d":"ر.س.‏ 0.00"}}]
[null,"المعلمون والمربيات ومربيات الأطفال، إلخ.",null,null,{"$f":"الهدايا[[#This Row],[الميزانية]]-الهدايا[[#This Row],[الفعلية]]","v":{"v":0,"d":"ر.س.‏ 0.00"}},{"$nulls":3},"أخرى (علامة التبويب في العمود الأخير من هذا الصف لإضافة صف)",null,null,{"$f":"الوجبات[[#This Row],[الميزانية]]-الوجبات[[#This Row],[الفعلية]]","v":{"v":0,"d":"ر.س.‏ 0.00"}}]
[null,"التبرعات الخيرية",null,null,{"$f":"الهدايا[[#This Row],[الميزانية]]-الهدايا[[#This Row],[الفعلية]]","v":{"v":0,"d":"ر.س.‏ 0.00"}},{"$nulls":3},"الإجمالي",{"$f":"SUBTOTAL(109,الوجبات[الميزانية])","v":{"v":0,"d":"ر.س.‏ 0.00"}},{"$f":"SUBTOTAL(109,الوجبات[الفعلية])","v":{"v":0,"d":"ر.س.‏ 0.00"}},{"$f":"SUBTOTAL(109,الوجبات[الفرق])","v":{"v":0,"d":"ر.س.‏ 0.00"}}]
[null,"أخرى (علامة التبويب في العمود الأخير من هذا الصف لإضافة صف)",null,null,{"$f":"الهدايا[[#This Row],[الميزانية]]-الهدايا[[#This Row],[الفعلية]]","v":{"v":0,"d":"ر.س.‏ 0.00"}}]
[null,"الإجمالي",{"$f":"SUBTOTAL(109,الهدايا[الميزانية])","v":{"v":750,"d":"ر.س.‏ 750.00"}},{"$f":"SUBTOTAL(109,الهدايا[الفعلية])","v":{"v":820,"d":"ر.س.‏ 820.00"}},{"$f":"SUBTOTAL(109,الهدايا[الفرق])","v":{"v":-70,"d":"-ر.س.‏ 70.00"}}]
["تسمية التعبئة في الخلية على اليسار وتسمية الترفيه في الخلية I16.","التعبئة",{"$nulls":6},"الترفيه"]
["أدخل مصروفات التعبئة في الجدول بدءاً من الخلية على اليسار ومصروفات الترفيه في الجدول بدءاً من الخلية I17. توجد الإرشادات التالية في الخلية A26.","العنصر","الميزانية","الفعلية","الفرق",{"$nulls":3},"العنصر","الميزانية","الفعلية","الفرق"]
[null,"تغليف الهدايا",null,null,{"$f":"التعبئة[[#This Row],[الميزانية]]-التعبئة[[#This Row],[الفعلية]]","v":{"v":0,"d":"ر.س.‏ 0.00"}},{"$nulls":3},"مساعدو الحفل (نادل، متعهد تقديم الطعام، عمال نظافة، إلخ.)",null,null,{"$f":"الترفيه[[#This Row],[الميزانية]]-الترفيه[[#This Row],[الفعلية]]","v":{"v":0,"d":"ر.س.‏ 0.00"}}]
[null,"العلامات",null,null,{"$f":"التعبئة[[#This Row],[الميزانية]]-التعبئة[[#This Row],[الفعلية]]","v":{"v":0,"d":"ر.س.‏ 0.00"}},{"$nulls":3},"الديكورات",null,null,{"$f":"الترفيه[[#This Row],[الميزانية]]-الترفيه[[#This Row],[الفعلية]]","v":{"v":0,"d":"ر.س.‏ 0.00"}}]
[null,"المستلزمات (الشريط، اللاصق، إلخ)",null,null,{"$f":"التعبئة[[#This Row],[الميزانية]]-التعبئة[[#This Row],[الفعلية]]","v":{"v":0,"d":"ر.س.‏ 0.00"}},{"$nulls":3},"الطعام والمشروبات",null,null,{"$f":"الترفيه[[#This Row],[الميزانية]]-الترفيه[[#This Row],[الفعلية]]","v":{"v":0,"d":"ر.س.‏ 0.00"}}]
[null,"صناديق",null,null,{"$f":"التعبئة[[#This Row],[الميزانية]]-التعبئة[[#This Row],[الفعلية]]","v":{"v":0,"d":"ر.س.‏ 0.00"}},{"$nulls":3},"الملابس",null,null,{"$f":"الترفيه[[#This Row],[الميزانية]]-الترفيه[[#This Row],[الفعلية]]","v":{"v":0,"d":"ر.س.‏ 0.00"}}]
[null,"رسوم الإرسال بالبريد",null,null,{"$f":"التعبئة[[#This Row],[الميزانية]]-التعبئة[[#This Row],[الفعلية]]","v":{"v":0,"d":"ر.س.‏ 0.00"}},{"$nulls":3},"التذاكر",null,null,{"$f":"الترفيه[[#This Row],[الميزانية]]-الترفيه[[#This Row],[الفعلية]]","v":{"v":0,"d":"ر.س.‏ 0.00"}}]
[null,"أخرى (علامة التبويب في العمود الأخير من هذا الصف لإضافة صف)",null,null,{"$f":"التعبئة[[#This Row],[الميزانية]]-التعبئة[[#This Row],[الفعلية]]","v":{"v":0,"d":"ر.س.‏ 0.00"}},{"$nulls":3},"العشاء خارج",null,null,{"$f":"الترفيه[[#This Row],[الميزانية]]-الترفيه[[#This Row],[الفعلية]]","v":{"v":0,"d":"ر.س.‏ 0.00"}}]
[null,"الإجمالي",{"$f":"SUBTOTAL(109,التعبئة[الميزانية])","v":{"v":0,"d":"ر.س.‏ 0.00"}},{"$f":"SUBTOTAL(109,التعبئة[الفعلية])","v":{"v":0,"d":"ر.س.‏ 0.00"}},{"$f":"SUBTOTAL(109,التعبئة[الفرق])","v":{"v":0,"d":"ر.س.‏ 0.00"}},{"$nulls":3},"أخرى (علامة التبويب في العمود الأخير من هذا الصف لإضافة صف)",null,null,{"$f":"الترفيه[[#This Row],[الميزانية]]-الترفيه[[#This Row],[الفعلية]]","v":{"v":0,"d":"ر.س.‏ 0.00"}}]
[{"$nulls":8},"الإجمالي",{"$f":"SUBTOTAL(109,الترفيه[الميزانية])","v":{"v":0,"d":"ر.س.‏ 0.00"}},{"$f":"SUBTOTAL(109,الترفيه[الفعلية])","v":{"v":0,"d":"ر.س.‏ 0.00"}},{"$f":"SUBTOTAL(109,الترفيه[الفرق])","v":{"v":0,"d":"ر.س.‏ 0.00"}}]
["توجد تسمية السفر في الخلية على اليسار وتسمية متنوعة في الخلية I26.","السفر",{"$nulls":6},"مصروفات متنوعة"]
["أدخل مصروفات السفر في الجدول بدءاً من الخلية على اليسار ومصروفات وجبات الطعام في الجدول بدءًا من الخلية I27.","العنصر","الميزانية","الفعلية","الفرق",{"$nulls":3},"العنصر","الميزانية","الفعلية","الفرق"]
[null,"الرحلة الجوية",null,null,{"$f":"السفر[[#This Row],[الميزانية]]-السفر[[#This Row],[الفعلية]]","v":{"v":0,"d":"ر.س.‏ 0.00"}},{"$nulls":3},"صور العطلة",null,null,{"$f":"المصروفات_المتنوعة[[#This Row],[الميزانية]]-المصروفات_المتنوعة[[#This Row],[الفعلية]]","v":{"v":0,"d":"ر.س.‏ 0.00"}}]
[null,"الإقامة",null,null,{"$f":"السفر[[#This Row],[الميزانية]]-السفر[[#This Row],[الفعلية]]","v":{"v":0,"d":"ر.س.‏ 0.00"}},{"$nulls":3},"الوقود ",null,null,{"$f":"المصروفات_المتنوعة[[#This Row],[الميزانية]]-المصروفات_المتنوعة[[#This Row],[الفعلية]]","v":{"v":0,"d":"ر.س.‏ 0.00"}}]
[null,"وسائل النقل",null,null,{"$f":"السفر[[#This Row],[الميزانية]]-السفر[[#This Row],[الفعلية]]","v":{"v":0,"d":"ر.س.‏ 0.00"}},{"$nulls":3},"أخرى (علامة التبويب في العمود الأخير من هذا الصف لإضافة صف)",null,null,{"$f":"المصروفات_المتنوعة[[#This Row],[الميزانية]]-المصروفات_المتنوعة[[#This Row],[الفعلية]]","v":{"v":0,"d":"ر.س.‏ 0.00"}}]
[null,"أخرى (علامة التبويب في العمود الأخير من هذا الصف لإضافة صف)",null,null,{"$f":"السفر[[#This Row],[الميزانية]]-السفر[[#This Row],[الفعلية]]","v":{"v":0,"d":"ر.س.‏ 0.00"}},{"$nulls":3},"الإجمالي",{"$f":"SUBTOTAL(109,المصروفات_المتنوعة[الميزانية])","v":{"v":0,"d":"ر.س.‏ 0.00"}},{"$f":"SUBTOTAL(109,المصروفات_المتنوعة[الفعلية])","v":{"v":0,"d":"ر.س.‏ 0.00"}},{"$f":"SUBTOTAL(109,المصروفات_المتنوعة[الفرق])","v":{"v":0,"d":"ر.س.‏ 0.00"}}]
[null,"الإجمالي",{"$f":"SUBTOTAL(109,السفر[الميزانية])","v":{"v":0,"d":"ر.س.‏ 0.00"}},{"$f":"SUBTOTAL(109,السفر[الفعلية])","v":{"v":0,"d":"ر.س.‏ 0.00"}},{"$f":"SUBTOTAL(109,السفر[الفرق])","v":{"v":0,"d":"ر.س.‏ 0.00"}}]